fUSD/lending_fUSD_20250217
["ID","MTS","AMOUNT","RATE_DAILY","PERIOD"]
[353389015,1739808671109,-500.0,0.00014027,2]
[353389016,1739808671119,-500.0,0.00014027,2]
[353389017,1739808671128,-500.0,0.00014027,2]
[353389018,1739808671138,-521.99,0.00014027,2]
[353389019,1739808671148,-500.0,0.00014027,2]
[353389020,1739808671157,-500.0,0.00014027,2]
[353389021,1739808671168,-500.0,0.00014027,2]
[353389022,1739808671178,-500.0,0.00014027,2]
[353389023,1739808671187,-578.99,0.00014027,2]
[353389024,1739808671196,-949.81,0.00014027,2]
[353389025,1739808671206,-500.0,0.00014027,2]
[353389026,1739808671216,-732.59,0.00014027,2]
[353389027,1739808671225,-500.0,0.00014027,2]
[353389028,1739808671234,-500.0,0.00014027,2]
[353389029,1739808671243,-674.25,0.00014027,2]
[353389030,1739808671253,-431.6337518,0.00014027,2]
[353389031,1739808671263,-500.0,0.00014027,2]
[353389032,1739808671273,-540.38,0.00014027,2]
[353389033,1739808671283,-526.58,0.00014027,2]
[353389034,1739808671294,-1547.95,0.00014027,2]
[353389035,1739808671308,-968.22,0.00014027,2]
[353389036,1739808671318,-500.0,0.00014027,2]
[353389037,1739808671327,-721.79,0.00014027,2]
[353389038,1739808671336,-500.0,0.00014027,2]
[353389039,1739808671347,-500.0,0.00014027,2]
[353389040,1739808671356,-500.0,0.00014027,2]
[353389041,1739808671365,-500.0,0.00014027,2]
[353389042,1739808671377,-1218.87,0.00014027,2]
[353389043,1739808671386,-937.07,0.00014027,2]
[353389044,1739808671396,-500.0,0.00014027,2]
[353389045,1739808671405,-500.0,0.00014027,2]
[353389046,1739808671415,-500.0,0.00014027,2]
[353389047,1739808671425,-840.26,0.00014027,2]
[353389048,1739808671435,-500.0,0.00014027,2]
[353389049,1739808671445,-1047.93,0.00014027,2]
[353389050,1739808671455,-650.73,0.00014027,2]
[353389051,1739808671466,-500.0,0.00014027,2]
[353389052,1739808671477,-847.87,0.00014027,2]
[353389053,1739808671487,-500.0,0.00014027,2]
[353389054,1739808671497,-500.0,0.00014027,2]
[353389055,1739808671507,-500.0,0.00014027,2]
[353389056,1739808671517,-516.01,0.00014027,2]
[353389057,1739808671527,-510.83,0.00014027,2]
[353389058,1739808671537,-750.18,0.00014027,2]
[353389059,1739808671547,-1008.95,0.00014027,2]
[353389060,1739808671557,-553.39,0.00014027,2]
[353389061,1739808671568,-500.0,0.00014027,2]
[353389062,1739808671578,-816.46,0.00014027,2]
[353389063,1739808671588,-900.2,0.00014027,2]
[353389064,1739808671597,-500.0,0.00014027,2]
[353389065,1739808671607,-983.81,0.00014027,2]
[353389066,1739808671616,-632.76,0.00014027,2]
[353389067,1739808671626,-500.0,0.00014027,2]
[353389068,1739808671636,-500.0,0.00014027,2]
[353389069,1739808671646,-651.22,0.00014027,2]
[353389070,1739808671656,-805.21,0.00014027,2]
[353389071,1739808671667,-500.0,0.00014027,2]
[353389072,1739808671677,-660.48,0.00014027,2]
[353389073,1739808671686,-1280.9,0.00014027,2]
[353389074,1739808671696,-2417.31,0.00014027,2]
[353389075,1739808671706,-1133.64,0.00014027,2]
[353389076,1739808671716,-2006.91,0.00014027,2]
[353389077,1739808671725,-832.36,0.00014027,2]
[353389078,1739808671735,-500.0,0.00014027,2]
[353389079,1739808671744,-500.0,0.00014027,2]
[353389080,1739808671754,-1188.46,0.00014027,2]
[353389081,1739808671763,-500.0,0.00014027,2]
[353389082,1739808671772,-500.0,0.00014027,2]
[353389083,1739808671782,-1022.75,0.00014027,2]
[353389084,1739808671791,-521.56,0.00014027,2]
[353389085,1739808671800,-840.29,0.00014027,2]
[353389086,1739808671810,-500.0,0.00014027,2]
[353389087,1739808671819,-500.0,0.00014027,2]
[353389088,1739808671829,-500.0,0.00014027,2]
[353389089,1739808671839,-500.0,0.00014027,2]
[353389090,1739808671849,-500.0,0.00014027,2]
[353389091,1739808671858,-1694.49,0.00014027,2]
[353389092,1739808671867,-500.0,0.00014027,2]
[353389093,1739808671876,-500.0,0.00014027,2]
[353389094,1739808671887,-500.0,0.00014027,2]
[353389095,1739808671896,-544.77,0.00014027,2]
[353389096,1739808671905,-1015.96,0.00014027,2]
[353389097,1739808671916,-500.0,0.00014027,2]
[353389098,1739808671925,-1086.82,0.00014027,2]
[353389099,1739808671934,-2321.33,0.00014027,2]
[353389100,1739808671943,-500.0,0.00014027,2]
[353389101,1739808671952,-1100.32,0.00014027,2]
[353389102,1739808671962,-500.0,0.00014027,2]
[353389103,1739808671972,-711.15,0.00014027,2]
[353389104,1739808671983,-511.92,0.00014027,2]
[353389105,1739808671993,-500.0,0.00014027,2]
[353389106,1739808672002,-753.28,0.00014027,2]
[353389107,1739808672012,-2485.22,0.00014027,2]
[353389108,1739808672022,-976.24,0.00014027,2]
[353389109,1739808672032,-504.39,0.00014027,2]
[353389110,1739808672042,-500.0,0.00014027,2]
[353389111,1739808672052,-500.0,0.00014027,2]
[353389112,1739808672062,-500.0,0.00014027,2]
[353389113,1739808672072,-500.0,0.00014027,2]
[353389114,1739808672082,-500.0,0.00014027,2]
[353389115,1739808672092,-876.02,0.00014027,2]
[353389116,1739808672102,-754.85,0.00014027,2]
[353389117,1739808672111,-970.02,0.00014027,2]
[353389118,1739808672121,-838.42,0.00014027,2]
[353389119,1739808672131,-500.0,0.00014027,2]
[353389120,1739808672141,-500.0,0.00014027,2]
[353389121,1739808672151,-500.0,0.00014027,2]
[353389122,1739808672161,-500.0,0.00014027,2]
[353389123,1739808672170,-500.0,0.00014027,2]
[353389124,1739808672180,-1415.29,0.00014027,2]
[353389125,1739808672190,-1411.31,0.00014027,2]
[353389126,1739808672199,-500.0,0.00014027,2]
[353389127,1739808672209,-977.08,0.00014027,2]
[353389128,1739808672219,-557.15,0.00014027,2]
[353389129,1739808672229,-729.94,0.00014027,2]
[353389130,1739808672238,-630.44,0.00014027,2]
[353389131,1739808672248,-1590.87,0.00014027,2]
[353389132,1739808672259,-983.09,0.00014027,2]
[353389133,1739808672268,-1355.54,0.00014027,2]
[353389134,1739808672278,-500.0,0.00014027,2]
[353389135,1739808672287,-500.0,0.00014027,2]
[353389136,1739808672298,-500.0,0.00014027,2]
[353389137,1739808672310,-617.66,0.00014027,2]
[353389138,1739808672321,-890.71,0.00014027,2]
[353389139,1739808672333,-664.2,0.00014027,2]
[353389140,1739808672343,-523.0,0.00014027,2]
[353389141,1739808672352,-527.12,0.00014027,2]
[353389142,1739808672362,-702.93,0.00014027,2]
[353389143,1739808672373,-500.0,0.00014027,2]
[353389144,1739808672383,-500.0,0.00014027,2]
[353389145,1739808672393,-1175.53,0.00014027,2]
[353389146,1739808672403,-500.0,0.00014027,2]
[353389147,1739808672414,-1296.19,0.00014027,2]
[353389148,1739808672424,-549.43,0.00014027,2]
[353389149,1739808672434,-1758.88,0.00014027,2]
[353389150,1739808672444,-500.0,0.00014027,2]
[353389151,1739808672454,-500.0,0.00014027,2]
[353389152,1739808672464,-1468.21,0.00014027,2]
[353389153,1739808672474,-931.33,0.00014027,2]
[353389154,1739808672542,-676.42,0.00014027,2]
[353389155,1739808672552,-500.0,0.00014027,2]
[353389156,1739808672562,-1743.0,0.00014039,2]
[353389157,1739808672571,-817.16,0.00014106,2]
[353389158,1739808672607,-500.0,0.00014107,2]
[353389159,1739808672621,-680.64,0.00014107,2]
[353389160,1739808672631,-500.0,0.00014107,2]
[353389161,1739808672640,-696.72,0.00014107,2]
[353389162,1739808672650,-1360.71,0.00014107,2]
[353389163,1739808672660,-500.0,0.00014107,2]
[353389164,1739808672671,-637.48,0.00014107,2]
[353389165,1739808672681,-794.87,0.00014107,2]
[353389166,1739808672695,-1049.34,0.00014107,2]
[353389167,1739808672705,-2710.8,0.00014107,2]
[353389168,1739808672714,-669.02,0.00014107,2]
[353389169,1739808672725,-769.08,0.00014107,2]
[353389170,1739808672735,-572.98,0.00014107,2]
[353389171,1739808672744,-990.85,0.00014107,2]
[353389172,1739808672754,-500.0,0.00014107,2]
[353389173,1739808672764,-611.41,0.00014107,2]
[353389174,1739808672773,-1177.85,0.00014108,2]
[353389175,1739808672783,-1177.85,0.00014108,2]
[353389176,1739808672793,-500.0,0.00014109,2]
[353389177,1739808672802,-500.0,0.00014109,2]
[353389178,1739808672811,-500.0,0.00014109,2]
[353389179,1739808672821,-500.0,0.00014109,2]
[353389180,1739808672830,-736.96,0.00014109,2]
[353389181,1739808672840,-500.0,0.00014109,2]
[353389182,1739808672850,-500.0,0.00014109,2]
[353389183,1739808672860,-500.0,0.00014109,2]
[353389184,1739808672870,-500.0,0.00014109,2]
[353389185,1739808672879,-500.0,0.00014109,2]
[353389186,1739808672888,-500.0,0.00014109,2]
[353389187,1739808672898,-500.0,0.00014109,2]
[353389188,1739808672907,-500.0,0.00014109,2]
[353389189,1739808672916,-500.0,0.00014109,2]
[353389190,1739808672926,-500.0,0.00014109,2]
[353389191,1739808672935,-500.0,0.00014109,2]
[353389192,1739808672944,-500.0,0.00014109,2]
[353389193,1739808672953,-500.0,0.00014109,2]
[353389194,1739808672962,-500.0,0.00014109,2]
[353389195,1739808672972,-500.0,0.00014109,2]
[353389196,1739808672981,-500.0,0.00014109,2]
[353389197,1739808672990,-500.0,0.00014109,2]
[353389198,1739808673000,-500.0,0.00014109,2]
[353389199,1739808673009,-500.0,0.00014109,2]
[353389200,1739808673018,-500.0,0.00014109,2]
[353389201,1739808673027,-587.05,0.00014109,2]
[353389202,1739808673037,-500.0,0.00014109,2]
[353389203,1739808673047,-500.0,0.00014109,2]
[353389204,1739808673057,-500.0,0.00014109,2]
[353389205,1739808673067,-500.0,0.00014109,2]
[353389206,1739808673077,-500.0,0.00014109,2]
[353389207,1739808673086,-525.62,0.00014109,2]
[353389208,1739808673095,-500.0,0.00014109,2]
[353389209,1739808673104,-500.0,0.00014109,2]
[353389210,1739808673114,-500.0,0.00014109,2]
[353389211,1739808673126,-500.0,0.00014109,2]
[353389212,1739808673135,-500.0,0.00014109,2]
[353389213,1739808673144,-500.0,0.00014109,2]
[353389214,1739808673154,-500.0,0.00014109,2]
[353389215,1739808673163,-500.0,0.00014109,2]
[353389216,1739808673173,-500.0,0.00014109,2]
[353389217,1739808673182,-500.0,0.00014109,2]
[353389218,1739808673191,-500.0,0.00014109,2]
[353389219,1739808673200,-500.0,0.00014109,2]
[353389220,1739808673209,-500.0,0.00014109,2]
[353389221,1739808673218,-531.18,0.00014109,2]
[353389222,1739808673227,-500.0,0.00014109,2]
[353389223,1739808673236,-500.0,0.00014109,2]
[353389224,1739808673246,-531.89,0.00014109,2]
[353389225,1739808673255,-500.0,0.00014109,2]
[353389226,1739808673265,-500.0,0.00014109,2]
[353389227,1739808673274,-500.0,0.00014109,2]
[353389228,1739808673284,-426.609506,0.00014109,2]
[353389229,1739808673293,-500.0,0.00014109,2]
[353389230,1739808673307,-500.0,0.00014109,2]
[353389231,1739808673318,-541.83,0.00014109,2]
[353389232,1739808673331,-500.0,0.00014109,2]
[353389233,1739808673341,-500.0,0.00014109,2]
[353389234,1739808673351,-500.0,0.00014109,2]
[353389235,1739808673361,-500.0,0.00014109,2]
[353389236,1739808673370,-500.0,0.00014109,2]
[353389237,1739808673379,-500.0,0.00014109,2]
[353389238,1739808673389,-500.0,0.00014109,2]
[353389239,1739808673398,-500.0,0.00014109,2]
[353389240,1739808673408,-500.0,0.00014109,2]
[353389241,1739808673418,-500.0,0.00014109,2]
[353389242,1739808673427,-500.0,0.00014109,2]
[353389243,1739808673436,-683.15,0.00014109,2]
[353389244,1739808673446,-500.0,0.00014109,2]
[353389245,1739808673455,-500.0,0.00014109,2]
[353389246,1739808673465,-500.0,0.00014109,2]
[353389247,1739808673474,-500.0,0.00014109,2]
[353389248,1739808673484,-500.0,0.00014109,2]
[353389249,1739808673494,-500.0,0.00014109,2]
[353389250,1739808673504,-398.43022799,0.00014109,2]
[353389251,1739808673514,-1042.38,0.00014109,2]
[353389252,1739808673524,-528.06,0.00014109,2]
[353389253,1739808673534,-500.0,0.00014109,2]
[353389254,1739808673543,-385.740435,0.00014109,2]
[353389255,1739808673553,-500.0,0.00014109,2]
[353389256,1739808673563,-524.48,0.00014109,2]
[353389257,1739808673572,-500.0,0.00014109,2]
[353389258,1739808673582,-500.0,0.00014109,2]
[353389259,1739808673591,-614.14,0.00014109,2]
[353389260,1739808673600,-500.0,0.00014109,2]
[353389261,1739808673609,-500.0,0.00014109,2]
[353389262,1739808673619,-500.0,0.00014109,2]
[353389263,1739808673628,-500.0,0.00014109,2]
[353389264,1739808673637,-500.0,0.00014109,2]
[353389265,1739808673647,-500.0,0.00014109,2]
[353389266,1739808673657,-500.0,0.00014109,2]
[353389267,1739808673667,-518.77,0.00014109,2]
[353389268,1739808673677,-500.0,0.00014109,2]
[353389269,1739808673686,-500.0,0.00014109,2]
[353389270,1739808673696,-500.0,0.00014109,2]
[353389271,1739808673707,-500.0,0.00014109,2]
[353389272,1739808673718,-500.0,0.00014109,2]
[353389273,1739808673728,-500.0,0.00014109,2]
[353389274,1739808673738,-500.0,0.00014109,2]
[353389275,1739808673748,-500.0,0.00014109,2]
[353389276,1739808673758,-500.0,0.00014109,2]
[353389277,1739808673769,-559.73,0.00014109,2]
[353389278,1739808673779,-500.0,0.00014109,2]
[353389279,1739808673788,-500.0,0.00014109,2]
[353389280,1739808673798,-500.0,0.00014109,2]
[353389281,1739808673807,-500.0,0.00014109,2]
[353389282,1739808673816,-500.0,0.00014109,2]
[353389283,1739808673825,-500.0,0.00014109,2]
[353389284,1739808673835,-569.9,0.00014109,2]
[353389285,1739808673844,-500.0,0.00014109,2]
[353389286,1739808673853,-538.35,0.00014109,2]
[353389287,1739808673862,-500.0,0.00014109,2]
[353389288,1739808673872,-523.5,0.00014109,2]
[353389289,1739808673881,-500.0,0.00014109,2]
[353389290,1739808673891,-500.0,0.00014109,2]
[353389291,1739808673901,-500.0,0.00014109,2]
[353389292,1739808673909,-500.0,0.00014109,2]
[353389293,1739808673919,-500.0,0.00014109,2]
[353389294,1739808673929,-163.6,0.00014109,2]
[353389295,1739808673939,-555.61,0.00014109,2]
[353389296,1739808673949,-820.32,0.00014109,2]
[353389297,1739808673959,-500.0,0.00014109,2]
[353389298,1739808673969,-500.0,0.00014109,2]
[353389299,1739808673978,-500.0,0.00014109,2]
[353389300,1739808673988,-500.0,0.00014109,2]
[353389301,1739808673997,-500.0,0.00014109,2]
[353389302,1739808674007,-612.03,0.00014109,2]
[353389303,1739808674016,-500.0,0.00014109,2]
[353389304,1739808674026,-590.37,0.00014109,2]
[353389305,1739808674035,-500.0,0.00014109,2]
[353389306,1739808674045,-500.0,0.00014109,2]
[353389307,1739808674055,-500.0,0.00014109,2]
[353389308,1739808674064,-500.0,0.00014109,2]
[353389309,1739808674074,-633.0,0.00014109,2]
[353389310,1739808674083,-573.15453061,0.00014109,2]
[353389311,1739808674093,-500.0,0.00014109,2]
[353389312,1739808674102,-524.42,0.00014109,2]
[353389313,1739808674111,-603.72,0.00014109,2]
[353389314,1739808674120,-1073.87,0.00014109,2]
[353389315,1739808674130,-162.1021817,0.00014109,2]
[353389316,1739808674139,-500.0,0.00014109,2]
[353389317,1739808674148,-352.92892766,0.00014109,2]
[353389318,1739808674157,-500.0,0.00014109,2]
[353389319,1739808674166,-521.99,0.00014109,2]
[353389320,1739808674175,-500.0,0.00014109,2]
[353389321,1739808674184,-796.63,0.00014109,2]
[353389322,1739808674194,-500.0,0.00014109,2]
[353389323,1739808674204,-500.0,0.00014109,2]
[353389324,1739808674214,-252.1,0.00014109,2]
[353389325,1739808674228,-578.99,0.00014109,2]
[353389326,1739808674238,-960.02,0.00014109,2]
[353389327,1739808674248,-949.81,0.00014109,2]
[353389328,1739808674258,-500.0,0.00014109,2]
[353389329,1739808674268,-732.59,0.00014109,2]
[353389330,1739808674278,-500.0,0.00014109,2]
[353389331,1739808674288,-500.0,0.00014109,2]
[353389332,1739808674300,-674.25,0.00014109,2]
[353389333,1739808674311,-1000.0,0.00014109,2]
[353389334,1739808674322,-540.38,0.00014109,2]
[353389335,1739808674332,-500.0,0.00014109,2]
[353389336,1739808674343,-526.58,0.00014109,2]
[353389337,1739808674353,-1547.95,0.00014109,2]
[353389338,1739808674364,-888.72,0.00014109,2]
[353389339,1739808674374,-968.22,0.00014109,2]
[353389340,1739808674383,-500.0,0.00014109,2]
[353389341,1739808674394,-721.79,0.00014109,2]
[353389342,1739808674405,-500.0,0.00014109,2]
[353389343,1739808674415,-500.0,0.00014109,2]
[353389344,1739808674426,-500.0,0.00014109,2]
[353389345,1739808674436,-500.0,0.00014109,2]
[353389346,1739808674445,-500.0,0.00014109,2]
[353389347,1739808674455,-1218.87,0.00014109,2]
[353389348,1739808674465,-937.07,0.00014109,2]
[353389349,1739808674475,-500.0,0.00014109,2]
[353389350,1739808674484,-500.0,0.00014109,2]
[353389351,1739808674495,-500.0,0.00014109,2]
[353389352,1739808674504,-840.26,0.00014109,2]
[353389353,1739808674514,-707.26,0.00014109,2]
[353389354,1739808674524,-1047.93,0.00014109,2]
[353389355,1739808674534,-650.73,0.00014109,2]
[353389356,1739808674544,-500.0,0.00014109,2]
[353389357,1739808674554,-847.87,0.00014109,2]
[353389358,1739808674564,-500.0,0.00014109,2]
[353389359,1739808674575,-500.0,0.00014109,2]
[353389360,1739808674585,-500.0,0.00014109,2]
[353389361,1739808674595,-516.01,0.00014109,2]
[353389362,1739808674605,-510.83,0.00014109,2]
[353389363,1739808674615,-1044.02,0.00014109,2]
[353389364,1739808674625,-750.18,0.00014109,2]
[353389365,1739808674635,-1008.95,0.00014109,2]
[353389366,1739808674645,-553.39,0.00014109,2]
[353389367,1739808674655,-500.0,0.00014109,2]
[353389368,1739808674666,-816.46,0.00014109,2]
[353389369,1739808674676,-900.2,0.00014109,2]
[353389370,1739808674686,-500.0,0.00014109,2]
[353389371,1739808674696,-983.81,0.00014109,2]
[353389372,1739808674706,-632.76,0.00014109,2]
[353389373,1739808674717,-500.0,0.00014109,2]
[353389374,1739808674727,-500.0,0.00014109,2]
[353389375,1739808674738,-651.22,0.00014109,2]
[353389376,1739808674748,-805.21,0.00014109,2]
[353389377,1739808674758,-500.0,0.00014109,2]
[353389378,1739808674768,-660.48,0.00014109,2]
[353389379,1739808674778,-1280.9,0.00014109,2]
[353389380,1739808674788,-2417.31,0.00014109,2]
[353389381,1739808674798,-1133.64,0.00014109,2]
[353389382,1739808674808,-2006.91,0.00014109,2]
[353389383,1739808674818,-832.36,0.00014109,2]
[353389384,1739808674828,-500.0,0.00014109,2]
[353389385,1739808674838,-500.0,0.00014109,2]
[353389386,1739808674848,-500.0,0.00014109,2]
[353389387,1739808674859,-1188.46,0.00014109,2]
[353389388,1739808674869,-500.0,0.00014109,2]
[353389389,1739808674879,-1022.75,0.00014109,2]
[353389390,1739808674889,-500.0,0.00014109,2]
[353389391,1739808674898,-521.56,0.00014109,2]
[353389392,1739808674908,-840.29,0.00014109,2]
[353389393,1739808674918,-500.0,0.00014109,2]
[353389394,1739808674928,-500.0,0.00014109,2]
[353389395,1739808674940,-500.0,0.00014109,2]
[353389396,1739808674951,-1694.49,0.00014109,2]
[353389397,1739808674961,-500.0,0.00014109,2]
[353389398,1739808674971,-500.0,0.00014109,2]
[353389399,1739808674981,-544.77,0.00014109,2]
[353389400,1739808674991,-1015.96,0.00014109,2]
[353389401,1739808675001,-1086.82,0.00014109,2]
[353389402,1739808675011,-2321.33,0.00014109,2]
[353389403,1739808675021,-500.0,0.00014109,2]
[353389404,1739808675032,-1100.32,0.00014109,2]
[353389405,1739808675042,-711.15,0.00014109,2]
[353389406,1739808675052,-511.92,0.00014109,2]
[353389407,1739808675062,-753.28,0.00014109,2]
[353389408,1739808675072,-2485.22,0.00014109,2]
[353389409,1739808675082,-976.24,0.00014109,2]
[353389410,1739808675091,-504.39,0.00014109,2]
[353389411,1739808675101,-500.0,0.00014109,2]
[353389412,1739808675111,-500.0,0.00014109,2]
[353389413,1739808675121,-500.0,0.00014109,2]
[353389414,1739808675131,-500.0,0.00014109,2]
[353389415,1739808675141,-500.0,0.00014109,2]
[353389416,1739808675151,-876.02,0.00014109,2]
[353389417,1739808675161,-754.85,0.00014109,2]
[353389418,1739808675172,-970.02,0.00014109,2]
[353389419,1739808675182,-838.42,0.00014109,2]
[353389420,1739808675198,-500.0,0.00014109,2]
[353389421,1739808675211,-500.0,0.00014109,2]
[353389422,1739808675221,-500.0,0.00014109,2]
[353389423,1739808675231,-500.0,0.00014109,2]
[353389424,1739808675241,-500.0,0.00014109,2]
[353389425,1739808675251,-1415.29,0.00014109,2]
[353389426,1739808675261,-1411.31,0.00014109,2]
[353389427,1739808675271,-977.08,0.00014109,2]
[353389428,1739808675284,-557.15,0.00014109,2]
[353389429,1739808675299,-729.94,0.00014109,2]
[353389430,1739808675314,-630.44,0.00014109,2]
[353389431,1739808675324,-1317.25525713,0.00014109,2]
[353389432,1739808675356,-273.61474287,0.00014109,2]
[353389433,1739808675366,-580.34851997,0.00014109,2]
[353389434,1739808675378,-402.74148003,0.00014109,2]
[353389435,1739808675388,-1355.54,0.00014109,2]
[353389436,1739808675398,-371.90412861,0.00014109,2]
[353389438,1739809080074,413.21794134,0.00020168,120]
[353389439,1739809241339,506.61194791,0.0002,120]
[353389440,1739809285402,150.55465277,0.000205,120]
[353389441,1739809328224,450.00000001,8.4e-05,2]
[353389445,1739809537413,1004.20049999,8e-05,2]
[353389446,1739809537434,38.94546959,8e-05,2]
[353389447,1739809556313,3433.48347321,6.94e-05,2]
[353389454,1739809651448,1800.0,0.0002,120]
[353389482,1739809832358,-300.0,8.835e-05,2]
[353389483,1739809832367,-2947.5127,8.836e-05,2]
[353389484,1739809832378,-5612.6395,8.836e-05,2]
[353389485,1739809832388,-500.0,8.851e-05,2]
[353389486,1739809832398,-2500.0,8.851e-05,2]
[353389487,1739809832409,-33651.89144686,8.973e-05,2]
[353389488,1739809832421,-3572.84785314,8.973e-05,2]
[353389489,1739809832431,-446.45419371,9e-05,2]
[353389490,1739809832441,-420.0,9.718e-05,2]
[353389491,1739809832450,-150.0,9.719e-05,2]
[353389492,1739809832460,-549.99160559,9.719e-05,2]
[353389493,1739809832470,-150.0,9.719e-05,2]
[353389494,1739809832479,-200.20634756,9.868e-05,2]
[353389495,1739809832497,-599.79365244,9.868e-05,2]
[353389496,1739809832507,-800.0,9.868e-05,2]
[353389497,1739809832521,-150.76644691,9.973e-05,2]
[353389498,1739809832531,-500.0,9.973e-05,2]
[353389499,1739809832540,-30228.31617288,0.0001,2]
[353389500,1739809832571,-324.01050564,0.0001,2]
[353389501,1739809832598,-11367.4775424,0.0001,2]
[353389503,1739809832608,-27909.4443802,0.0001,2]
[353389505,1739809832619,-10133.75574845,0.0001,2]
[353389992,1739809838123,-9742.87127798,0.0001,2]
[353389994,1739809838135,-458.40408599,0.0001,2]
[353390000,1739809838183,-731.85487859,0.0001,2]
[353390002,1739809838195,-2860.07238696,0.0001,2]
[353390008,1739809838248,-115886.94968094,0.0001,2]
[353390011,1739809838260,-2025.44595638,0.0001,2]
[353390013,1739809838275,-4509.71223315,0.0001,2]
[353390017,1739809838308,-9061.49703077,0.0001,2]
[353390020,1739809838319,-505.09837654,0.0001,2]
[353390026,1739809838368,-5603.17985561,0.0001,2]
[353390028,1739809838379,-859.25971507,0.0001,2]
[353390030,1739809838390,-1780.85305921,0.0001,2]
[353390035,1739809838429,-4692.88378982,0.0001,2]
[353390037,1739809838440,-764.0,0.0001,2]
[353390039,1739809838452,-651.249959,0.0001,2]
[353390233,1739809840372,-297.48170235,8.851e-05,2]
[353390245,1739809840484,-2202.51829765,8.851e-05,2]
[353390247,1739809840493,-94513.97128286,0.0001,2]
[353390249,1739809840507,-515129.43232787,0.0001,2]
[353390264,1739809840644,-319.83586182,0.0001,2]
[353390266,1739809840655,-963.19752,0.0001,2]
[353390268,1739809840666,-9641.24543186,0.0001,2]
[353390271,1739809840678,-273.09719523,0.0001,2]
[353390273,1739809840689,-2480.74477818,0.0001,2]
[353390276,1739809840707,-2374.38258882,0.0001,2]
[353390278,1739809840720,-1011.06427204,0.0001,2]
[353390280,1739809840731,-4663.63823099,0.0001,2]
[353390546,1739809843273,-383.06268,0.0001,2]
[353390553,1739809843328,-330.45008235,0.0001,2]
[353390566,1739809843447,-5236.4499454,0.0001,2]
[353390568,1739809843459,-576.99415043,0.0001,2]
[353390574,1739809843502,-57679.90835664,0.0001,2]
[353390576,1739809843513,-200.0,0.0001,3]
[353390578,1739809843528,-52053.56230006,0.0001,2]
[353390580,1739809843538,-232952.62198728,0.0001,2]
[353390792,1739809846123,-501.29221381,0.0001,2]
[353390801,1739809846204,-686.54848001,0.0001,2]
[353390803,1739809846215,-656.37500246,0.0001,2]
[353390807,1739809846236,-486.20654836,0.0001,2]
[353390836,1739809846513,-1999.41365248,0.0001,2]
[353391492,1739810136142,1409.0586,8.699e-05,2]
[353391493,1739810166077,311.5793,8.699e-05,2]
[353391494,1739810177158,-500.0,8.851e-05,2]
[353391495,1739810177183,-1000.0,8.851e-05,2]
[353391496,1739810177208,-158.34,8.907e-05,2]
[353391497,1739810177233,-300.0,8.972e-05,2]
[353391498,1739810177257,-18041.66,8.973e-05,2]
[353391499,1739810178431,1567.9464,8.699e-05,2]